fUST/lending_fUST_20240814
["ID","MTS","AMOUNT","RATE_DAILY","PERIOD"]
[334794042,1723572666158,-970.13,0.00016712,2]
[334794043,1723572666167,-606.78,0.00016712,2]
[334794044,1723572666176,-614.25,0.00016712,2]
[334794045,1723572666185,-914.25,0.00016712,2]
[334794046,1723572666195,-835.99,0.00016712,2]
[334794047,1723572666204,-855.32,0.00016712,2]
[334794048,1723572666213,-753.42,0.00016712,2]
[334794049,1723572666223,-544.7,0.00016712,2]
[334794050,1723572666232,-565.43,0.00016712,2]
[334794051,1723572666242,-500.0,0.00016712,2]
[334794052,1723572666251,-783.28,0.00016712,2]
[334794053,1723572666260,-1513.2,0.00016712,2]
[334794054,1723572666270,-717.31,0.00016712,2]
[334794055,1723572666279,-963.45,0.00016712,2]
[334794056,1723572666288,-1433.28,0.00016712,2]
[334794057,1723572666297,-732.14,0.00016712,2]
[334794058,1723572666307,-465.0,0.00016718,2]
[334794059,1723572666317,-558.11,0.00016986,2]
[334794060,1723572666326,-504.32219303,0.00016986,2]
[334794061,1723572666336,-710.78,0.00016986,2]
[334794062,1723572666345,-500.0,0.00016986,2]
[334794063,1723572666354,-500.0,0.00016986,2]
[334794064,1723572666363,-561.84,0.00016986,2]
[334794065,1723572666372,-500.0,0.00016986,2]
[334794066,1723572666382,-500.0,0.00016986,2]
[334794067,1723572666391,-500.0,0.00016986,2]
[334794068,1723572666401,-500.0,0.00016986,2]
[334794069,1723572666411,-500.0,0.00016986,2]
[334794070,1723572666421,-689.94,0.00016986,2]
[334794071,1723572666430,-1399.68,0.00016986,2]
[334794072,1723572666440,-500.0,0.00016986,2]
[334794073,1723572666449,-500.0,0.00016986,2]
[334794074,1723572666459,-975.7,0.00016986,2]
[334794075,1723572666469,-361.11736762,0.00016986,2]
[334794076,1723572666478,-500.0,0.00016986,2]
[334794077,1723572666488,-500.0,0.00016986,2]
[334794078,1723572666497,-500.0,0.00016986,2]
[334794079,1723572666506,-500.0,0.00016986,2]
[334794080,1723572666515,-500.0,0.00016986,2]
[334794081,1723572666525,-500.0,0.00016986,2]
[334794082,1723572666534,-500.0,0.00016986,2]
[334794083,1723572666543,-601.1,0.00016986,2]
[334794084,1723572666552,-670.23,0.00016986,2]
[334794085,1723572666561,-500.0,0.00016986,2]
[334794086,1723572666571,-500.0,0.00016986,2]
[334794087,1723572666581,-500.0,0.00016986,2]
[334794088,1723572666590,-536.88,0.00016986,2]
[334794089,1723572666599,-659.69,0.00016986,2]
[334794090,1723572666608,-2827.39,0.00016986,2]
[334794091,1723572666617,-876.96,0.00016986,2]
[334794092,1723572666626,-3066.56,0.00016986,2]
[334794093,1723572666636,-730.3,0.00016986,2]
[334794094,1723572666645,-772.82,0.00016986,2]
[334794095,1723572666654,-632.5,0.00016986,2]
[334794096,1723572666664,-500.0,0.00016986,2]
[334794097,1723572666673,-500.0,0.00016986,2]
[334794098,1723572666682,-1082.88,0.00016986,2]
[334794099,1723572666691,-500.0,0.00016986,2]
[334794100,1723572666701,-3032.99,0.00016986,2]
[334794101,1723572666711,-699.11,0.00016986,2]
[334794102,1723572666720,-638.92,0.00016986,2]
[334794103,1723572666729,-500.0,0.00016986,2]
[334794104,1723572666739,-500.0,0.00016986,2]
[334794105,1723572666748,-1145.15,0.00016986,2]
[334794106,1723572666758,-603.08,0.00016986,2]
[334794107,1723572666767,-1072.75,0.00016986,2]
[334794108,1723572666776,-741.49,0.00016986,2]
[334794109,1723572666785,-627.62,0.00016986,2]
[334794110,1723572666795,-500.0,0.00016986,2]
[334794111,1723572666803,-1010.06,0.00016986,2]
[334794112,1723572666813,-583.24,0.00016986,2]
[334794113,1723572666823,-500.0,0.00016986,2]
[334794114,1723572666832,-788.91,0.00016986,2]
[334794115,1723572666841,-531.3,0.00016986,2]
[334794116,1723572666850,-1108.44,0.00016986,2]
[334794117,1723572666859,-3900.26,0.00016986,2]
[334794118,1723572666869,-643.76,0.00016986,2]
[334794119,1723572666879,-500.0,0.00016986,2]
[334794120,1723572666888,-605.98,0.00016986,2]
[334794121,1723572666898,-749.21,0.00016986,2]
[334794122,1723572666908,-751.97,0.00016986,2]
[334794123,1723572666921,-723.37,0.00016986,2]
[334794124,1723572666931,-516.92329406,0.00016986,2]
[334794142,1723573346342,902.42401426,0.000101,4]
[334794143,1723573442098,193.42743239,0.000101,10]
[334794152,1723573729400,1126.2,0.00016,30]
[334794174,1723573832716,-154.8975033,9.8e-05,2]
[334794175,1723573832726,-154.8975033,9.999e-05,2]
[334794176,1723573832736,-154.79103211,0.0001,2]
[334794177,1723573832747,-300.0,0.00010099,2]
[334794178,1723573832756,-300.0,0.00010099,2]
[334794179,1723573832766,-2111.27572321,0.000101,2]
[334794180,1723573832775,-232.45588428,0.000101,2]
[334794181,1723573832785,-3080.88889929,0.000101,2]
[334794182,1723573832795,-3612.54647884,0.000101,2]
[334794183,1723573832804,-158.63524894,0.000101,2]
[334794184,1723573832813,-749.42,0.00010959,2]
[334794185,1723573832823,-7969.09113808,0.00011911,2]
[334794209,1723573838966,-16930.90886192,0.00011911,2]
[334794212,1723573838986,-159.941972,0.00011982,2]
[334794214,1723573838999,-159.941972,0.0001219,2]
[334794216,1723573839010,-500.0,0.00012191,2]
[334794218,1723573839020,-223.38199524,0.00012242,2]
[334794220,1723573839030,-159.941972,0.00012398,2]
[334794221,1723573839040,-159.941972,0.00012606,2]
[334794223,1723573839052,-500.0,0.00012986,2]
[334794225,1723573839063,-188798.78197852,0.00013305,2]
[334794227,1723573839075,-4656.5506717,0.00013576,2]
[334794229,1723573839086,-1407.95869176,0.00013588,2]
[334794231,1723573839096,-2587.563821,0.00013598,2]
[334794233,1723573839106,-28712.44413346,0.0001367,2]
[334794234,1723573839116,-232786.552678,0.0001367,2]
[334794236,1723573839127,-200.0,0.00013673,2]
[334794238,1723573839137,-200.0,0.00013673,2]
[334794240,1723573839147,-99037.72489927,0.0001368,2]
[334794242,1723573839157,-116393.276339,0.00013688,2]
[334794243,1723573839169,-85684.19627378,0.00013688,2]
[334794280,1723573840794,-30709.08006522,0.00013688,2]
[334794281,1723573840804,-296.91350523,0.00013698,2]
[334794282,1723573840814,-500.0,0.00013698,2]
[334794283,1723573840824,-500.0,0.00013698,2]
[334794284,1723573840834,-456.35957897,0.00013698,2]
[334794285,1723573840844,-505.22362471,0.00013698,2]
[334794286,1723573840854,-500.0,0.00013698,2]
[334794287,1723573840863,-649.88312665,0.00013698,2]
[334794288,1723573840873,-500.0,0.00013698,2]
[334794289,1723573840883,-500.0,0.00013698,2]
[334794290,1723573840893,-391.16923445,0.00013698,2]
[334794291,1723573840902,-500.0,0.00013698,2]
[334794292,1723573840912,-500.0,0.00013698,2]
[334794293,1723573840922,-203.98296948,0.00013698,2]
[334794294,1723573840932,-500.0,0.00013698,2]
[334794295,1723573840942,-500.0,0.00013698,2]
[334794296,1723573840951,-500.0,0.00013698,2]
[334794297,1723573840962,-500.0,0.00013698,2]
[334794298,1723573840972,-500.0,0.00013698,2]
[334794299,1723573840982,-500.0,0.00013698,2]
[334794300,1723573840992,-500.0,0.00013698,2]
[334794301,1723573841004,-500.0,0.00013698,2]
[334794302,1723573841015,-500.0,0.00013698,2]
[334794303,1723573841025,-500.0,0.00013698,2]
[334794304,1723573841035,-622.78043321,0.00013698,2]
[334794305,1723573841045,-500.0,0.00013698,2]
[334794306,1723573841055,-500.0,0.00013698,2]
[334794307,1723573841066,-200.0,0.00013698,2]
[334794308,1723573841076,-500.0,0.00013698,2]
[334794309,1723573841086,-500.0,0.00013698,2]
[334794310,1723573841095,-500.0,0.00013698,2]
[334794311,1723573841105,-500.0,0.00013698,2]
[334794312,1723573841114,-500.0,0.00013698,2]
[334794313,1723573841124,-500.0,0.00013698,2]
[334794314,1723573841134,-500.0,0.00013698,2]
[334794315,1723573841143,-758.16,0.00013698,2]
[334794316,1723573841154,-500.0,0.00013698,2]
[334794317,1723573841164,-500.0,0.00013698,2]
[334794318,1723573841174,-500.0,0.00013698,2]
[334794319,1723573841184,-500.0,0.00013698,2]
[334794320,1723573841195,-500.0,0.00013698,2]
[334794321,1723573841204,-500.0,0.00013698,2]
[334794322,1723573841214,-500.0,0.00013698,2]
[334794323,1723573841224,-569.15,0.00013698,2]
[334794324,1723573841234,-500.0,0.00013698,2]
[334794325,1723573841244,-500.0,0.00013698,2]
[334794326,1723573841255,-500.0,0.00013698,2]
[334794327,1723573841264,-500.0,0.00013698,2]
[334794328,1723573841277,-500.0,0.00013698,2]
[334794329,1723573841290,-154.76012181,0.00013698,2]
[334794330,1723573841299,-500.0,0.00013698,2]
[334794331,1723573841310,-500.0,0.00013698,2]
[334794332,1723573841322,-500.0,0.00013698,2]
[334794333,1723573841331,-500.0,0.00013698,2]
[334794334,1723573841341,-500.0,0.00013698,2]
[334794335,1723573841350,-500.0,0.00013698,2]
[334794336,1723573841362,-500.0,0.00013698,2]
[334794337,1723573841372,-500.0,0.00013698,2]
[334794338,1723573841382,-512.14111745,0.00013698,2]
[334794339,1723573841393,-500.0,0.00013698,2]
[334794340,1723573841406,-500.0,0.00013698,2]
[334794341,1723573841416,-500.0,0.00013698,2]
[334794342,1723573841427,-500.0,0.00013698,2]
[334794343,1723573841436,-500.0,0.00013698,2]
[334794344,1723573841446,-500.0,0.00013698,2]
[334794345,1723573841456,-500.0,0.00013698,2]
[334794346,1723573841466,-210.61041639,0.00013698,2]
[334794347,1723573841476,-500.0,0.00013698,2]
[334794348,1723573841487,-500.0,0.00013698,2]
[334794349,1723573841500,-500.0,0.00013698,2]
[334794350,1723573841510,-500.0,0.00013698,2]
[334794351,1723573841520,-500.0,0.00013698,2]
[334794352,1723573841531,-500.0,0.00013698,2]
[334794353,1723573841540,-500.0,0.00013698,2]
[334794354,1723573841551,-500.0,0.00013698,2]
[334794355,1723573841561,-500.0,0.00013698,2]
[334794356,1723573841571,-500.0,0.00013698,2]
[334794357,1723573841581,-500.0,0.00013698,2]
[334794358,1723573841591,-500.0,0.00013698,2]
[334794359,1723573841601,-500.0,0.00013698,2]
[334794360,1723573841611,-500.0,0.00013698,2]
[334794361,1723573841620,-500.0,0.00013698,2]
[334794362,1723573841632,-500.0,0.00013698,2]
[334794363,1723573841642,-500.0,0.00013698,2]
[334794364,1723573841653,-500.0,0.00013698,2]
[334794365,1723573841662,-500.0,0.00013698,2]
[334794366,1723573841672,-500.0,0.00013698,2]
[334794367,1723573841681,-500.0,0.00013698,2]
[334794368,1723573841691,-500.0,0.00013698,2]
[334794369,1723573841701,-500.0,0.00013698,2]
[334794370,1723573841711,-500.0,0.00013698,2]
[334794371,1723573841720,-500.0,0.00013698,2]
[334794372,1723573841730,-500.0,0.00013698,2]
[334794373,1723573841740,-166.92149566,0.00013698,2]
[334794374,1723573841752,-500.0,0.00013698,2]
[334794375,1723573841768,-324.23796146,0.00013698,2]
[334794376,1723573842486,-175.76203854,0.00013698,2]
[334794377,1723573842496,-500.0,0.00013698,2]
[334794378,1723573842507,-1531.5,0.00013698,2]
[334794379,1723573842516,-134.01540059,0.00013698,2]
[334794426,1723573848556,-273.37336231,9.9e-05,2]
[334794428,1723573848567,-365.98459941,0.00013698,2]
[334794430,1723573848576,-511.56,0.00013698,2]
[334794432,1723573848585,-769.04,0.00013698,2]
[334794433,1723573848595,-500.0,0.00013698,2]
[334794435,1723573848605,-1788.82,0.00013698,2]
[334794437,1723573848615,-1001.45167858,0.00013698,2]
[334794438,1723573848624,-500.0,0.00013698,2]
[334794439,1723573848634,-500.0,0.00013698,2]
[334794440,1723573848643,-500.0,0.00013698,2]
[334794441,1723573848652,-500.0,0.00013698,2]
[334794442,1723573848662,-586.56,0.00013698,2]
[334794443,1723573848671,-500.0,0.00013698,2]
[334794444,1723573848681,-1232.15,0.00013698,2]
[334794445,1723573848690,-500.0,0.00013698,2]
[334794446,1723573848699,-500.0,0.00013698,2]
[334794447,1723573848709,-500.0,0.00013698,2]
[334794448,1723573848718,-500.0,0.00013698,2]
[334794449,1723573848727,-500.0,0.00013698,2]
[334794450,1723573848736,-668.01,0.00013698,2]
[334794451,1723573848746,-508.89044468,0.00013698,2]
[334794452,1723573848755,-500.0,0.00013698,2]
[334794453,1723573848765,-625.77,0.00013698,2]
[334794454,1723573848774,-598.81,0.00013698,2]
[334794455,1723573848784,-500.0,0.00013698,2]
[334794456,1723573848793,-500.0,0.00013698,2]
[334794457,1723573848803,-500.0,0.00013698,2]
[334794458,1723573848812,-500.0,0.00013698,2]
[334794459,1723573848822,-659.06,0.00013698,2]
[334794460,1723573848832,-500.0,0.00013698,2]
[334794461,1723573848841,-500.0,0.00013698,2]
[334794462,1723573848850,-500.0,0.00013698,2]
[334794463,1723573848859,-500.0,0.00013698,2]
[334794464,1723573848869,-2275.16,0.00013698,2]
[334794465,1723573848878,-500.0,0.00013698,2]
[334794466,1723573848888,-613.48,0.00013698,2]
[334794467,1723573848897,-500.0,0.00013698,2]
[334794468,1723573848906,-500.0,0.00013698,2]
[334794469,1723573848916,-500.0,0.00013698,2]
[334794470,1723573848926,-500.0,0.00013698,2]
[334794471,1723573848935,-500.0,0.00013698,2]
[334794472,1723573848944,-500.0,0.00013698,2]
[334794473,1723573848955,-500.0,0.00013698,2]
[334794474,1723573848966,-500.0,0.00013698,2]
[334794475,1723573848975,-500.0,0.00013698,2]
[334794476,1723573848985,-500.0,0.00013698,2]
[334794477,1723573848994,-177.20958315,0.00013698,2]
[334794478,1723573849005,-502.5757839,0.00013698,2]
[334794479,1723573849015,-699.51,0.00013698,2]
[334794480,1723573849025,-500.0,0.00013698,2]
[334794481,1723573849034,-500.0,0.00013698,2]
[334794482,1723573849044,-500.0,0.00013698,2]
[334794483,1723573849053,-593.57865587,0.00013698,2]
[334794484,1723573849062,-625.02,0.00013698,2]
[334794485,1723573849072,-500.0,0.00013698,2]
[334794486,1723573849082,-515.99551299,0.00013698,2]
[334794487,1723573849091,-968.29,0.00013698,2]
[334794488,1723573849101,-3201.2,0.00013698,2]
[334794494,1723573849257,-500.0,0.00013698,2]
[334794496,1723573849268,-500.0,0.00013698,2]
[334794497,1723573849278,-1287.5,0.00013698,2]
[334794499,1723573849292,-956.05,0.00013698,2]
[334794501,1723573849302,-505.59341651,0.00013698,2]
[334794503,1723573849313,-500.0,0.00013698,2]
[334794504,1723573849324,-500.0,0.00013698,2]
[334794505,1723573849334,-486.45266825,0.00013698,2]
[334794506,1723573849344,-500.0,0.00013698,2]
[334794507,1723573849354,-500.0,0.00013698,2]
[334794508,1723573849366,-3149.75,0.00013698,2]
[334794509,1723573849376,-500.0,0.00013698,2]
[334794510,1723573849385,-533.31,0.00013698,2]
[334794511,1723573849395,-895.8,0.00013698,2]
[334794512,1723573849404,-500.0,0.00013698,2]
[334794513,1723573849413,-500.0,0.00013698,2]
[334794514,1723573849423,-500.0,0.00013698,2]
[334794515,1723573849433,-500.0,0.00013698,2]
[334794516,1723573849443,-500.0,0.00013698,2]
[334794517,1723573849453,-272.24009,0.00013698,2]
[334794518,1723573849463,-606.33,0.00013698,2]
[334794519,1723573849473,-500.0,0.00013698,2]
[334794520,1723573849483,-272.24009,0.00013698,2]
[334794521,1723573849492,-500.0,0.00013698,2]
[334794522,1723573849502,-500.0,0.00013698,2]
[334794523,1723573849520,-500.0,0.00013698,2]
[334794524,1723573849529,-500.0,0.00013698,2]
[334794525,1723573849539,-500.0,0.00013698,2]
[334794526,1723573849549,-500.0,0.00013698,2]
[334794527,1723573849559,-500.0,0.00013698,2]
[334794528,1723573849568,-151.0,0.00013698,2]
[334794529,1723573849578,-877.73,0.00013698,2]
[334794530,1723573849587,-1281.57,0.00013698,2]
[334794531,1723573849597,-151.0,0.00013698,2]
[334794532,1723573849606,-602.15,0.00013698,2]
[334794533,1723573849615,-500.0,0.00013698,2]
[334794534,1723573849625,-302.646909,0.00013698,2]
[334794535,1723573849634,-302.646909,0.00013698,2]
[334794536,1723573849644,-500.0,0.00013698,2]
[334794537,1723573849656,-500.0,0.00013698,2]
[334794538,1723573849666,-500.0,0.00013698,2]
[334794539,1723573849676,-500.0,0.00013698,2]
[334794540,1723573849685,-1307.846444,0.00013698,2]
[334794541,1723573849695,-500.0,0.00013698,2]
[334794542,1723573849705,-165.795068,0.00013699,2]
[334794543,1723573849715,-3000.0,0.00013699,2]
[334794544,1723573849724,-500.0,0.00013699,2]
[334794545,1723573849735,-500.0,0.00013699,2]
[334794546,1723573849744,-363.50663081,0.00013699,2]
[334794547,1723573849755,-500.0,0.00013699,2]
[334794548,1723573849764,-500.0,0.00013699,2]
[334794549,1723573849773,-500.0,0.00013699,2]
[334794550,1723573849783,-500.0,0.00013699,2]
[334794551,1723573849792,-500.0,0.00013699,2]
[334794552,1723573849802,-500.0,0.00013699,2]
[334794553,1723573849811,-500.0,0.00013699,2]
[334794554,1723573849820,-500.0,0.00013699,2]
[334794555,1723573849830,-500.0,0.00013699,2]
[334794556,1723573849840,-500.0,0.00013699,2]
[334794557,1723573849849,-500.0,0.00013699,2]
[334794558,1723573849859,-500.0,0.00013699,2]
[334794559,1723573849868,-500.0,0.00013699,2]
[334794560,1723573849878,-500.0,0.00013699,2]
[334794561,1723573849888,-500.0,0.00013699,2]
[334794562,1723573849898,-500.0,0.00013699,2]
[334794563,1723573849907,-500.0,0.00013699,2]
[334794564,1723573849918,-192.17121698,0.00013699,2]
[334794565,1723573849929,-500.0,0.00013699,2]
[334794566,1723573849941,-500.0,0.00013699,2]
[334794567,1723573849950,-500.0,0.00013699,2]
[334794568,1723573849960,-500.0,0.00013699,2]
[334794569,1723573849970,-500.0,0.00013699,2]
[334794570,1723573849980,-500.0,0.00013699,2]
[334794571,1723573849989,-500.0,0.00013699,2]
[334794572,1723573849998,-500.0,0.00013699,2]
[334794573,1723573850010,-872.11934068,0.00013699,2]
[334794574,1723573850019,-872.11934068,0.00013699,2]
[334794575,1723573850029,-872.11934068,0.00013699,2]
[334794576,1723573850038,-872.11934068,0.00013699,2]
[334794577,1723573850047,-872.11934068,0.00013699,2]
[334794578,1723573850056,-872.11934068,0.00013699,2]
[334794579,1723573850066,-872.11934068,0.00013699,2]
[334794580,1723573850076,-872.11934068,0.00013699,2]
[334794581,1723573850086,-872.11934068,0.00013699,2]
[334794582,1723573850097,-872.11934068,0.00013699,2]
[334794583,1723573850107,-872.11934068,0.00013699,2]
[334794584,1723573850117,-872.11934068,0.00013699,2]
[334794585,1723573850127,-872.11934068,0.00013699,2]
[334794586,1723573850136,-872.11934068,0.00013699,2]
[334794587,1723573850146,-872.11934068,0.00013699,2]
[334794588,1723573850156,-872.11934068,0.00013699,2]
[334794589,1723573850166,-872.11934068,0.00013699,2]
[334794590,1723573850177,-872.11934068,0.00013699,2]
[334794591,1723573850186,-872.11934068,0.00013699,2]
[334794592,1723573850196,-872.11934068,0.00013699,2]
[334794593,1723573850206,-872.11934068,0.00013699,2]
[334794594,1723573850216,-872.11934068,0.00013699,2]
[334794595,1723573850226,-872.11934068,0.00013699,2]
[334794596,1723573850236,-872.11934068,0.00013699,2]
[334794597,1723573850246,-872.11934068,0.00013699,2]
[334794598,1723573850257,-872.11934068,0.00013699,2]
[334794599,1723573850268,-245.042287,0.000137,2]
[334794600,1723573850278,-2587.56382098,0.00013735,2]
[334794601,1723573850292,-2587.56382098,0.00013872,2]
[334794602,1723573850303,-73174.13639519,0.00013872,2]
[334794603,1723573850313,-500.0,0.00013972,2]
[334794604,1723573850323,-758.16,0.00013972,2]
[334794605,1723573850333,-500.0,0.00013972,2]
[334794606,1723573850343,-500.0,0.00013972,2]
[334794607,1723573850352,-569.15,0.00013972,2]
[334794608,1723573850362,-500.0,0.00013972,2]
[334794609,1723573850372,-500.0,0.00013972,2]
[334794610,1723573850382,-500.0,0.00013972,2]
[334794611,1723573850391,-500.0,0.00013972,2]
[334794612,1723573850400,-566.67079666,0.00013972,2]
[334794613,1723573850410,-500.0,0.00013972,2]
[334794614,1723573850419,-500.0,0.00013972,2]
[334794615,1723573850428,-500.0,0.00013972,2]
[334794616,1723573850438,-500.0,0.00013972,2]
[334794617,1723573850448,-500.0,0.00013972,2]
[334794618,1723573850457,-500.0,0.00013972,2]
[334794619,1723573850467,-500.0,0.00013972,2]
[334794620,1723573850477,-500.0,0.00013972,2]
[334794621,1723573850487,-500.0,0.00013972,2]
[334794622,1723573850496,-500.0,0.00013972,2]
[334794623,1723573850507,-500.0,0.00013972,2]
[334794624,1723573850516,-500.0,0.00013972,2]
[334794625,1723573850526,-500.0,0.00013972,2]
[334794626,1723573850535,-500.0,0.00013972,2]
[334794627,1723573850545,-500.0,0.00013972,2]
[334794628,1723573850554,-500.0,0.00013972,2]
[334794629,1723573850563,-500.0,0.00013972,2]
[334794630,1723573850573,-500.0,0.00013972,2]
[334794631,1723573850582,-28.45896775,0.00013972,2]
[334794739,1723575038148,-223.38199524,9.509e-05,2]
[334794740,1723575038159,-154.79103211,0.0001,2]
[334794741,1723575038169,-24900.0,0.00012379,2]
[334794742,1723575038180,-500.0,0.00012986,2]
[334794743,1723575038191,-1709.04082586,0.00013488,2]
[334794744,1723575038200,-1035.0255284,0.000135,2]
[334794745,1723575038210,-103544.432898,0.00013578,2]
[334794746,1723575038220,-88888.0,0.00013588,2]
[334794747,1723575038229,-1035.02552839,0.00013593,2]
[334794748,1723575038240,-1267.16282253,0.00013598,2]
[334794749,1723575038249,-150.112233,0.000136,2]
[334794750,1723575038260,-150.112233,0.000136,2]
[334794751,1723575038271,-200.0,0.00013673,2]
[334794752,1723575038281,-200.0,0.00013673,2]
[334794753,1723575038293,-200.0,0.00013673,2]
[334794754,1723575038304,-1035.02552839,0.00013686,2]
[334794755,1723575038315,-14356.22206673,0.00013688,2]
[334794756,1723575038326,-310633.298695,0.00013688,2]
[334794757,1723575038337,-273.81846412,0.00013698,2]
[334794758,1723575038346,-500.0,0.00013698,2]
[334794759,1723575038362,-500.0,0.00013698,2]
[334794760,1723575038371,-500.0,0.00013698,2]
[334794761,1723575038381,-500.0,0.00013698,2]
[334794762,1723575038390,-500.0,0.00013698,2]
[334794763,1723575038400,-500.0,0.00013698,2]
[334794764,1723575038409,-500.0,0.00013698,2]
[334794765,1723575038419,-325.94630324,0.00013698,2]
[334794766,1723575038429,-500.0,0.00013698,2]
[334794767,1723575038439,-500.0,0.00013698,2]
[334794768,1723575038449,-500.0,0.00013698,2]
[334794769,1723575038459,-500.0,0.00013698,2]
[334794770,1723575038469,-500.0,0.00013698,2]
[334794771,1723575038479,-550.0,0.00013698,2]
[334794772,1723575038488,-367.12412063,0.00013698,2]
[334794773,1723575038499,-500.0,0.00013698,2]
[334794774,1723575038509,-500.0,0.00013698,2]
[334794775,1723575038519,-500.0,0.00013698,2]
[334794776,1723575038530,-500.0,0.00013698,2]
[334794777,1723575038540,-500.0,0.00013698,2]
[334794778,1723575038552,-500.0,0.00013698,2]
[334794779,1723575038563,-500.0,0.00013698,2]
[334794780,1723575038573,-500.0,0.00013698,2]
[334794781,1723575038583,-500.0,0.00013698,2]
[334794782,1723575038593,-192.72976493,0.00013698,2]
[334794783,1723575038605,-500.0,0.00013698,2]
[334794784,1723575038616,-500.0,0.00013698,2]
[334794785,1723575038627,-500.0,0.00013698,2]
[334794786,1723575038638,-500.0,0.00013698,2]
[334794787,1723575038648,-500.0,0.00013698,2]
[334794788,1723575038659,-500.0,0.00013698,2]
[334794789,1723575038671,-500.0,0.00013698,2]
[334794790,1723575038682,-166.92149566,0.00013698,2]
[334794791,1723575038695,-154.76012181,0.00013698,2]
[334794792,1723575038706,-500.0,0.00013698,2]
[334794793,1723575038716,-500.0,0.00013698,2]
[334794794,1723575038727,-500.0,0.00013698,2]
[334794795,1723575038738,-500.0,0.00013698,2]
[334794796,1723575038748,-500.0,0.00013698,2]
[334794797,1723575038757,-500.0,0.00013698,2]
[334794798,1723575038769,-500.0,0.00013698,2]
[334794799,1723575038781,-500.0,0.00013698,2]
[334794800,1723575038791,-500.0,0.00013698,2]
[334794801,1723575038801,-324.23796146,0.00013698,2]
[334794802,1723575038812,-500.0,0.00013698,2]
[334794803,1723575038823,-500.0,0.00013698,2]
[334794804,1723575038833,-500.0,0.00013698,2]
[334794805,1723575038844,-500.0,0.00013698,2]
[334794806,1723575038857,-500.0,0.00013698,2]
[334794807,1723575038869,-500.0,0.00013698,2]
[334794808,1723575038880,-500.0,0.00013698,2]
[334794809,1723575038890,-500.0,0.00013698,2]
[334794810,1723575038901,-512.14111745,0.00013698,2]
[334794811,1723575038911,-500.0,0.00013698,2]
[334794812,1723575038921,-296.83412996,0.00013698,2]
[334794813,1723575038931,-500.0,0.00013698,2]
[334794814,1723575038940,-500.0,0.00013698,2]
[334794815,1723575038950,-649.88312665,0.00013698,2]
[334794816,1723575038960,-296.91350523,0.00013698,2]
[334794817,1723575038970,-500.0,0.00013698,2]
[334794818,1723575038980,-500.0,0.00013698,2]
[334794819,1723575038989,-500.0,0.00013698,2]
[334794820,1723575038999,-456.35957897,0.00013698,2]
[334794821,1723575039008,-500.0,0.00013698,2]
[334794822,1723575039018,-588.92257893,0.00013698,2]
[334794823,1723575039028,-500.0,0.00013698,2]
[334794824,1723575039038,-500.0,0.00013698,2]
[334794825,1723575039047,-500.0,0.00013698,2]
[334794826,1723575039058,-500.0,0.00013698,2]
[334794827,1723575039067,-500.0,0.00013698,2]
[334794828,1723575039077,-500.0,0.00013698,2]
[334794829,1723575039087,-500.0,0.00013698,2]